fUSD/lending_fUSD_20260405
["ID","MTS","AMOUNT","RATE_DAILY","PERIOD"]
[419754552,1775355042042,-339.79133416,0.00014273,2]
[419754553,1775355042051,-500.0,0.00014273,2]
[419754554,1775355042060,-500.0,0.00014273,2]
[419754555,1775355042070,-500.0,0.00014273,2]
[419754556,1775355042079,-500.0,0.00014273,2]
[419754557,1775355042089,-500.0,0.00014273,2]
[419754558,1775355042098,-263.08602634,0.00014277,2]
[419754559,1775355042107,-572.5,0.00014287,2]
[419754560,1775355042117,-572.5,0.00014287,2]
[419754561,1775355042126,-572.5,0.00014287,2]
[419754562,1775355042135,-572.5,0.00014287,2]
[419754563,1775355042144,-572.5,0.00014287,2]
[419754564,1775355042154,-572.5,0.00014287,2]
[419754565,1775355042163,-899.16,0.00014287,2]
[419754566,1775355042172,-899.16,0.00014287,2]
[419754567,1775355042181,-899.16,0.00014287,2]
[419754568,1775355042190,-899.16,0.00014287,2]
[419754569,1775355042199,-899.16,0.00014287,2]
[419754570,1775355042209,-899.16,0.00014287,2]
[419754571,1775355042218,-500.0,0.00014287,2]
[419754572,1775355042227,-500.0,0.00014287,2]
[419754573,1775355042236,-500.0,0.00014287,2]
[419754574,1775355042245,-500.0,0.00014287,2]
[419754575,1775355042254,-500.0,0.00014287,2]
[419754576,1775355042263,-500.0,0.00014287,2]
[419754577,1775355042272,-500.0,0.00014287,2]
[419754578,1775355042281,-500.0,0.00014287,2]
[419754579,1775355042290,-500.0,0.00014287,2]
[419754580,1775355042299,-500.0,0.00014287,2]
[419754581,1775355042309,-500.0,0.00014287,2]
[419754582,1775355042318,-500.0,0.00014287,2]
[419754583,1775355042327,-1500000.0,0.00014287,2]
[419754584,1775355042337,-1557.82415292,0.00014375,2]
[419754585,1775355042346,-4750.94,0.00014384,2]
[419754586,1775355042356,-14363.93039832,0.00014438,2]
[419754587,1775355042365,-676.67319732,0.0001444,2]
[419754588,1775355042375,-736.0,0.00014442,2]
[419754589,1775355042384,-14938.6755785,0.00014458,2]
[419754590,1775355042393,-4135.99946342,0.00014533,2]
[419754591,1775355042403,-1000.0,0.00014621,2]
[419754592,1775355042412,-308.03873246,0.00014621,2]
[419754593,1775355042421,-1000.0,0.00014621,2]
[419754594,1775355042430,-14938.6755785,0.00014664,2]
[419754595,1775355042439,-33032.4137,0.00014695,2]
[419754596,1775355042449,-1000.0,0.00014695,2]
[419754597,1775355042458,-1000.0,0.00014721,2]
[419754598,1775355042468,-627.70930647,0.00014721,2]
[419754599,1775355042477,-1000.0,0.00014721,2]
[419754600,1775355042486,-1000.0,0.00014721,2]
[419754601,1775355042495,-189.74788311,0.00014721,2]
[419754602,1775355042506,-246.11,0.00014764,2]
[419754603,1775355042515,-1535.04648556,0.00014795,2]
[419754604,1775355042524,-1500.0,0.00014795,2]
[419754605,1775355042533,-418.3764967,0.00014795,2]
[419754606,1775355042542,-1500.0,0.00014795,2]
[419754607,1775355042551,-1500.0,0.00014795,2]
[419754608,1775355042561,-1500.0,0.00014795,2]
[419754609,1775355042570,-1500.0,0.00014795,2]
[419754610,1775355042579,-1500.0,0.00014795,2]
[419754611,1775355042589,-1500.0,0.00014795,2]
[419754612,1775355042598,-1500.0,0.00014795,2]
[419754613,1775355042607,-1500.0,0.00014795,2]
[419754614,1775355042617,-14363.93039832,0.00014804,2]
[419754615,1775355042627,-4135.99946342,0.00014806,2]
[419754616,1775355042636,-1000.0,0.00014821,2]
[419754617,1775355042645,-1000.0,0.00014821,2]
[419754618,1775355042654,-1000.0,0.00014821,2]
[419754619,1775355042664,-1000.0,0.00014821,2]
[419754620,1775355042674,-1000.0,0.00014821,2]
[419754621,1775355042683,-1000.0,0.00014821,2]
[419754622,1775355042692,-1000.0,0.00014821,2]
[419754623,1775355042702,-1000.0,0.00014821,2]
[419754624,1775355042711,-1000.0,0.00014821,2]
[419754625,1775355042721,-14938.6755785,0.0001487,2]
[419754626,1775355042730,-289.56339563,0.00014908,2]
[419754627,1775355042740,-276.70394482,0.00014985,2]
[419754628,1775355042749,-173.12885939,0.00014985,2]
[419754629,1775355042758,-168.57841199,0.00014985,2]
[419754631,1775355042768,-257.00691579,0.00014985,2]
[419754632,1775355042777,-300.16629608,0.00014987,2]
[419754633,1775355042786,-279.31105797,0.00014987,2]
[419754634,1775355042795,-300.0,0.00015,2]
[419754635,1775355042804,-2067.27601646,0.00015,2]
[419754636,1775355042813,-8047.93487487,0.00015,2]
[419754637,1775355042823,-223458.98806615,0.00015,7]
[419754638,1775355042833,-4750.94,0.00015068,2]
[419754639,1775355042842,-800.96674089,0.00015068,2]
[419754640,1775355042851,-14938.6755785,0.00015076,2]
[419754641,1775355042860,-4135.99946342,0.0001508,2]
[419754642,1775355042870,-454.36,0.00015155,2]
[419754643,1775355042879,-1413.46382838,0.00015168,2]
[419754644,1775355042888,-1500.0,0.00015168,2]
[419754645,1775355042898,-14363.93039832,0.00015169,2]
[419754646,1775355042907,-3631.75464297,0.00015177,2]
[419754647,1775355042917,-10000.0,0.00015205,2]
[419754648,1775355042926,-497.02,0.00015264,2]
[419754649,1775355042935,-727.692277,0.00015268,2]
[419754651,1775355042945,-1500.0,0.00015268,2]
[419754653,1775355042954,-1500.0,0.00015268,2]
[419754654,1775355042963,-14938.6755785,0.00015282,2]
[419754655,1775355042972,-543.8459196,0.000153,2]
[419754656,1775355042982,-398.37750802,0.000153,2]
[419754657,1775355042991,-534.4658997,0.000153,2]
[419754658,1775355043000,-1517.64,0.000153,2]
[419754659,1775355043009,-2000.0,0.00015342,2]
[419754660,1775355043018,-2000.0,0.00015342,2]
[419754661,1775355043027,-1285.98271306,0.00015342,2]
[419754662,1775355043145,-552.93113016,0.00015342,2]
[419754663,1775355043157,-161.08615678,0.00015342,2]
[419754664,1775355043167,-333.44558322,0.00015342,2]
[419754668,1775355043815,-1753.85680119,0.00015342,2]
[419754669,1775355043824,-2000.0,0.00015342,2]
[419754670,1775355043834,-2000.0,0.00015342,2]
[419754671,1775355043844,-2000.0,0.00015342,2]
[419754672,1775355043853,-2000.0,0.00015342,2]
[419754673,1775355043862,-1347.07116371,0.00015342,2]
[419754674,1775355043871,-4135.99946342,0.00015353,2]
[419754675,1775355043881,-1500.0,0.00015368,2]
[419754676,1775355043895,-1002.36401508,0.00015368,2]
[419754677,1775355043905,-1500.0,0.00015368,2]
[419754678,1775355043915,-1500.0,0.00015368,2]
[419754679,1775355043924,-501.94346372,0.00015368,2]
[419754680,1775355043933,-1500.0,0.00015368,2]
[419754681,1775355043943,-1500.0,0.00015368,2]
[419754682,1775355043952,-1500.0,0.00015368,2]
[419754683,1775355043961,-1500.0,0.00015368,2]
[419754684,1775355043970,-2419.0,0.00015394,2]
[419754685,1775355043980,-512.60947705,0.000154,2]
[419754686,1775355043989,-1541.97906342,0.00015401,2]
[419754687,1775355043999,-2419.0,0.00015417,2]
[419754688,1775355044012,-454.36,0.00015429,2]
[419754689,1775355044022,-2419.0,0.0001545,2]
[419754690,1775355044030,-14938.6755785,0.00015488,2]
[419754691,1775355044040,-769.60238368,0.000155,3]
[419754692,1775355044049,-500.0,0.000155,2]
[419754693,1775355044058,-1231.52674065,0.000155,2]
[419754694,1775355044067,-730.84360012,0.000155,2]
[419754695,1775355044076,-2000.0,0.00015501,2]
[419754696,1775355044085,-246.11,0.00015502,2]
[419754697,1775355044095,-14363.93039832,0.00015535,2]
[419754698,1775355044104,-497.02,0.00015538,2]
[419754699,1775355044114,-2419.0,0.00015556,2]
[419754700,1775355044123,-2000.0,0.00015601,2]
[419754701,1775355044133,-4135.99946342,0.00015627,2]
[419754702,1775355044142,-733.77686062,0.00015634,2]
[419754703,1775355044151,-2419.0,0.00015664,2]
[419754704,1775355044160,-14938.6755785,0.00015694,2]
[419754705,1775355044170,-400.0,0.000157,5]
[419754706,1775355044179,-2000.0,0.00015701,2]
[419754707,1775355044188,-454.36,0.00015703,2]
[419754708,1775355044198,-2419.0,0.00015715,2]
[419754709,1775355044205,-2000.0,0.00015716,2]
[419754710,1775355044213,-102196.83756726,0.0001572,2]
[419754711,1775355044222,-169.0,0.00015753,2]
[419754712,1775355044231,-170.006862,0.00015753,2]
[419754713,1775355044240,-4750.94,0.00015753,2]
[419754714,1775355044512,-2419.0,0.0001576,2]
[419754715,1775355044521,-151.39,0.00015779,2]
[419754716,1775355044531,-151.39,0.00015779,2]
[419754717,1775355044541,-151.39,0.00015779,2]
[419754718,1775355044551,-151.39,0.00015779,2]
[419754719,1775355044560,-400.0,0.000158,5]
[419754720,1775355044570,-2000.0,0.00015801,2]
[419754721,1775355044579,-497.02,0.00015812,2]
[419754722,1775355044588,-2419.0,0.00015813,2]
[419754723,1775355044598,-2000.0,0.00015816,2]
[419754724,1775355044607,-643.48326881,0.00015816,2]
[419754725,1775355044617,-1252.0,0.00015817,2]
[419754726,1775355044626,-2419.0,0.00015883,2]
[419754727,1775355044636,-500.0,0.0001589,2]
[419754728,1775355044645,-500.0,0.0001589,2]
[419754729,1775355044655,-500.0,0.0001589,2]
[419754730,1775355044665,-500.0,0.0001589,2]
[419754731,1775355044677,-500.0,0.0001589,2]
[419754732,1775355044686,-500.0,0.0001589,2]
[419754733,1775355044695,-500.0,0.0001589,2]
[419754734,1775355044705,-500.0,0.0001589,2]
[419754735,1775355044715,-500.0,0.0001589,2]
[419754736,1775355044725,-500.0,0.0001589,2]
[419754737,1775355044734,-500.0,0.0001589,2]
[419754738,1775355044744,-500.0,0.0001589,2]
[419754739,1775355044754,-500.0,0.0001589,2]
[419754740,1775355044763,-500.0,0.0001589,2]
[419754741,1775355044772,-500.0,0.0001589,2]
[419754742,1775355044781,-500.0,0.0001589,2]
[419754743,1775355044790,-500.0,0.0001589,2]
[419754744,1775355044799,-500.0,0.0001589,2]
[419754745,1775355044808,-500.0,0.0001589,2]
[419754746,1775355044817,-500.0,0.0001589,2]
[419754747,1775355044827,-500.0,0.0001589,2]
[419754748,1775355044838,-500.0,0.0001589,2]
[419754749,1775355044849,-500.0,0.0001589,2]
[419754750,1775355044859,-500.0,0.0001589,2]
[419754751,1775355044870,-556.59256026,0.0001589,2]
[419754752,1775355044879,-572.5,0.0001589,2]
[419754753,1775355044890,-899.16,0.0001589,2]
[419754754,1775355044901,-500.0,0.0001589,2]
[419754755,1775355044911,-959.70208157,0.0001589,2]
[419754757,1775355045950,-1040.29791843,0.0001589,2]
[419754758,1775355045961,-250.0,0.0001589,2]
[419754759,1775355045972,-364.8,0.0001589,2]
[419754760,1775355045982,-1281.76329528,0.0001589,2]
[419754761,1775355045992,-2251.35549923,0.0001589,2]
[419754762,1775355046001,-2500.0,0.0001589,2]
[419754763,1775355046012,-2500.0,0.0001589,2]
[419754764,1775355046022,-2500.0,0.0001589,2]
[419754765,1775355046032,-2002.22534804,0.0001589,2]
[419754766,1775355046043,-2500.0,0.0001589,2]
[419754767,1775355046054,-8032.72978244,0.000159,2]
[419754768,1775355046064,-400.0,0.000159,5]
[419754769,1775355046075,-300.16629608,0.000159,2]
[419754770,1775355046085,-14363.93039832,0.000159,2]
[419754771,1775355046095,-14938.6755785,0.000159,2]
[419754772,1775355046107,-279.31105797,0.000159,2]
[419754773,1775355046117,-4135.99946342,0.000159,2]
[419754774,1775355046127,-2000.0,0.00015901,2]
[419754775,1775355046138,-16926.7600323,0.00015916,2]
[419754776,1775355046149,-1974.27272662,0.00015916,2]
[419754777,1775355046158,-813.52916887,0.00015916,2]
[419754778,1775355046167,-2000.0,0.00015916,2]
[419754779,1775355046176,-568.54783961,0.00015916,2]
[419754780,1775355046187,-505.32828533,0.00015916,2]
[419754781,1775355046196,-915.49762245,0.00015916,2]
[419754782,1775355046205,-1506.85879324,0.00015916,2]
[419754783,1775355046215,-2419.0,0.00015925,2]
[419754784,1775355046224,-3851.85620936,0.0001596,2]
[419754785,1775355046234,-454.36,0.00015977,2]
[419754786,1775355046243,-193.0,0.00015977,2]
[419754787,1775355046254,-263.08602634,0.0001599,2]
[419754788,1775355046263,-666.0,0.00015999,2]
[419754789,1775355046273,-500.0,0.00015999,2]
[419754790,1775355046284,-500.0,0.00015999,2]
[419754791,1775355046294,-500.0,0.00015999,2]
[419754792,1775355046306,-500.0,0.00015999,2]
[419754793,1775355046316,-500.0,0.00015999,2]
[419754794,1775355046326,-500.0,0.00015999,2]
[419754795,1775355046335,-500.0,0.00015999,2]
[419754796,1775355046345,-500.0,0.00015999,2]
[419754797,1775355046355,-500.0,0.00015999,2]
[419754798,1775355046366,-500.0,0.00015999,2]
[419754799,1775355046375,-500.0,0.00015999,2]
[419754800,1775355046386,-500.0,0.00015999,2]
[419754801,1775355046397,-500.0,0.00015999,2]
[419754802,1775355046407,-500.0,0.00015999,2]
[419754803,1775355046417,-500.0,0.00015999,2]
[419754804,1775355046426,-500.0,0.00015999,2]
[419754805,1775355046436,-500.0,0.00015999,2]
[419754806,1775355046446,-500.0,0.00015999,2]
[419754807,1775355046456,-500.0,0.00015999,2]
[419754808,1775355046466,-500.0,0.00015999,2]
[419754809,1775355046477,-500.0,0.00015999,2]
[419754810,1775355046487,-500.0,0.00015999,2]
[419754811,1775355046496,-500.0,0.00015999,2]
[419754812,1775355046506,-500.0,0.00015999,2]
[419754813,1775355046516,-500.0,0.00015999,2]
[419754814,1775355046525,-500.0,0.00015999,2]
[419754815,1775355046535,-500.0,0.00015999,2]
[419754816,1775355046544,-500.0,0.00015999,2]
[419754817,1775355046554,-500.0,0.00015999,2]
[419754818,1775355046563,-500.0,0.00015999,2]
[419754819,1775355046573,-500.0,0.00015999,2]
[419754820,1775355046582,-500.0,0.00015999,2]
[419754821,1775355046592,-500.0,0.00015999,2]
[419754822,1775355046601,-500.0,0.00015999,2]
[419754823,1775355046611,-500.0,0.00015999,2]
[419754824,1775355046621,-500.0,0.00015999,2]
[419754825,1775355046631,-500.0,0.00015999,2]
[419754826,1775355046641,-500.0,0.00015999,2]
[419754827,1775355046650,-500.0,0.00015999,2]
[419754828,1775355046659,-500.0,0.00015999,2]
[419754829,1775355046670,-500.0,0.00015999,2]
[419754830,1775355046679,-500.0,0.00015999,2]
[419754831,1775355046689,-500.0,0.00015999,2]
[419754832,1775355046698,-500.0,0.00015999,2]
[419754833,1775355046707,-500.0,0.00015999,2]
[419754834,1775355046717,-355.16871344,0.00015999,2]
[419754835,1775355046726,-500.0,0.00016,2]
[419754836,1775355046735,-500.0,0.00016,2]
[419754837,1775355046744,-500.0,0.00016,2]
[419754839,1775355046754,-500.0,0.00016,2]
[419754841,1775355046764,-49059.49630411,0.00016,2]
[419754844,1775355046777,-1669.75612245,0.00016,2]
[419754846,1775355046789,-671.41351234,0.00016,2]
[419754848,1775355046801,-2358.73356464,0.00016,2]
[419754855,1775355046851,-591.07158026,0.00016,2]
[419754857,1775355046863,-644.38,0.00016,2]
[419754859,1775355046874,-277.32858603,0.00016,2]
[419754882,1775355048005,-274.0,0.00013155,2]
[419754883,1775355048014,-374.92043422,0.00016,2]
[419754884,1775355048046,-1612.35469932,0.00016,2]
[419754885,1775355048076,-501.0,0.00013111,2]
[419754886,1775355048086,-1599.87172366,0.00016,2]
[419754887,1775355048097,-661.24,0.00016,2]
[419754888,1775355048814,-182.82419012,0.00010699,2]
[419754889,1775355048823,-500.0,0.00010699,2]
[419754890,1775355048832,-500.0,0.00010699,2]
[419754891,1775355048841,-249.16260988,0.00010699,2]
[419754892,1775355049125,-250.83739012,0.00010699,2]
[419754893,1775355049134,-500.0,0.00010699,2]
[419754894,1775355049145,-500.0,0.00010699,2]
[419754895,1775355049154,-500.0,0.00010699,2]
[419754896,1775355049163,-500.0,0.00010699,2]
[419754897,1775355049172,-500.0,0.00010699,2]
[419754898,1775355049182,-500.0,0.00010699,2]
[419754899,1775355049191,-500.0,0.00010699,2]
[419754900,1775355049200,-500.0,0.00010699,2]
[419754901,1775355049209,-500.0,0.00010699,2]
[419754902,1775355049219,-500.0,0.00010899,2]
[419754903,1775355049231,-500.0,0.00010899,2]
[419754904,1775355049241,-500.0,0.00010899,2]
[419754905,1775355049250,-600.0,0.00010899,2]
[419754906,1775355049259,-501.0,0.00015138,3]
[419754907,1775355049268,-2909.77115231,0.00016,2]
[419754908,1775355049343,-500.0,0.00010699,2]
[419754909,1775355049352,-150.01129907,0.00010699,2]
[419754911,1775355165098,173.54,9.771e-05,2]
[419754923,1775355779289,1105.5079588,9.843e-05,2]
[419754925,1775355863469,472.33,4.855e-05,2]
[419754926,1775355863674,472.33,5.111e-05,2]
[419754927,1775355863864,472.33,5.366e-05,2]
[419754928,1775355864049,472.33,5.622e-05,2]
[419754929,1775355864238,472.33,5.877e-05,2]
[419754930,1775355864438,472.33,6.133e-05,2]
[419754931,1775355864646,472.33,6.388e-05,2]
[419754932,1775355864841,472.33,6.644e-05,2]
[419754933,1775355865040,472.33,6.899e-05,2]
[419754934,1775355865307,472.33,7.155e-05,2]
[419754935,1775355865497,472.33,7.41e-05,2]
[419754936,1775355865730,472.33,7.666e-05,2]
[419754937,1775355865889,472.33,7.921e-05,2]
[419754938,1775355866068,472.33,8.177e-05,2]
[419754939,1775355866276,472.33,8.433e-05,2]
[419754940,1775355866466,472.33,8.688e-05,2]
[419754941,1775355867012,472.33,8.944e-05,2]
[419754942,1775355867111,472.33,9.199e-05,2]
[419754943,1775355867187,472.33,9.455e-05,2]
[419754944,1775355867423,472.33,9.71e-05,2]
[419754946,1775355909104,701.32,0.00016101,120]
[419754947,1775355928016,1000.0,0.0001155,10]
[419754948,1775355983700,553.41,9.748e-05,2]
[419754949,1775355983722,2907.22,9.748e-05,2]
[419754952,1775356098129,2000.0,9.691e-05,2]
[419754961,1775356230444,1000.0,9.843e-05,2]
[419754962,1775356230750,1622.3377,9.843e-05,2]
[419754966,1775356232355,-300.0,9.874e-05,2]
[419754967,1775356232366,-1200.0,9.874e-05,2]
[419754968,1775356232377,-300.0,9.874e-05,2]
[419754969,1775356232387,-292.0,9.874e-05,2]
[419754970,1775356232398,-5798.6845473,9.874e-05,2]
[419754971,1775356232407,-250.0,9.874e-05,2]
[419754972,1775356232417,-5000.0,9.875e-05,2]
[419754973,1775356232427,-500.0,9.875e-05,2]
[419754974,1775356232437,-1600.0,0.00010139,2]
[419754975,1775356232446,-150.0,0.00010202,2]
[419754976,1775356232456,-1200.0,0.00010202,2]
[419754977,1775356232466,-42938.43936886,0.00010203,2]
[419755058,1775356240880,-793.66649967,0.00010203,2]
[419755059,1775356241054,-35529.16616266,0.00010203,2]
[419755060,1775356241064,-500.0,0.00010224,2]
[419755061,1775356241074,-500.0,0.00010224,2]
[419755062,1775356241083,-500.0,0.00010224,2]
[419755063,1775356241092,-500.0,0.00010224,2]
[419755064,1775356241102,-500.0,0.00010224,2]
[419755065,1775356241112,-200.0,0.00010224,2]
[419755066,1775356241122,-500.0,0.00010224,2]
[419755067,1775356241131,-500.0,0.00010224,2]
[419755068,1775356241140,-475.5204151,0.00010224,2]
[419755069,1775356241150,-500.0,0.00010224,2]
[419755070,1775356241159,-151.0,0.00010224,2]
[419755071,1775356241170,-500.0,0.00010224,2]
[419755072,1775356241180,-151.0,0.00010224,2]
[419755073,1775356241189,-500.0,0.00010224,2]
[419755074,1775356241199,-151.0,0.00010224,2]
[419755075,1775356241208,-500.0,0.00010224,2]
[419755076,1775356241218,-151.0,0.00010224,2]
[419755077,1775356241227,-500.0,0.00010224,2]
[419755078,1775356241236,-151.0,0.00010224,2]
[419755079,1775356241246,-500.0,0.00010224,2]
[419755080,1775356241255,-151.0,0.00010224,2]
[419755081,1775356241265,-500.0,0.00010224,2]
[419755082,1775356241275,-151.0,0.00010224,2]
[419755083,1775356241284,-151.0,0.00010224,2]
[419755084,1775356241294,-218.91025513,0.00010224,2]
[419755085,1775356241303,-151.0,0.00010224,2]
[419755086,1775356241313,-151.0,0.00010224,2]
[419755087,1775356241323,-151.0,0.00010224,2]
[419755089,1775356241332,-151.0,0.00010224,2]
[419755090,1775356241342,-151.0,0.00010224,2]
[419755091,1775356241351,-151.0,0.00010224,2]
[419755092,1775356241361,-151.0,0.00010224,2]
[419755093,1775356241370,-296.08744494,0.00010224,2]
[419755094,1775356241379,-151.0,0.00010224,2]
[419755095,1775356241389,-151.0,0.00010224,2]
[419755096,1775356241399,-151.0,0.00010224,2]
[419755098,1775356241408,-151.0,0.00010224,2]
[419755101,1775356241418,-151.0,0.00010224,2]
[419755102,1775356241427,-151.0,0.00010224,2]
[419755105,1775356241437,-151.0,0.00010224,2]
[419755107,1775356241446,-1386.78395259,0.00010224,2]
[419755110,1775356241455,-151.0,0.00010224,2]
[419755112,1775356241464,-500.0,0.00010224,2]
[419755115,1775356241474,-166.66,0.00010293,2]
[419755117,1775356241483,-9999.99,0.00010361,2]
[419755119,1775356241493,-999.99,0.00010361,2]
[419755122,1775356241502,-150.99,0.00010361,2]
[419755125,1775356241512,-4115.89,0.00010361,2]
[419755128,1775356241522,-299.99,0.00010361,2]
[419755131,1775356241531,-150.99,0.00010361,2]
[419755134,1775356241540,-369.49,0.00010361,2]
[419755136,1775356241550,-2075.87,0.00010362,2]
[419755138,1775356241559,-500.0,0.00010498,2]
[419755139,1775356241568,-500.0,0.00010587,2]
[419755140,1775356241579,-3000.0,0.000106,3]
[419755141,1775356241589,-11443.19751054,0.00010606,2]
[419755142,1775356241599,-166.66,0.00010633,2]
[419755143,1775356241608,-342.0,0.00010643,2]
[419755144,1775356241618,-1794.0,0.00010664,2]
[419755145,1775356241627,-1001.0,0.00010681,2]
[419755146,1775356241637,-949.0,0.00010686,2]
[419755147,1775356241647,-6000.0,0.000107,3]
[419755148,1775356241657,-1833.0,0.00010707,2]
[419755149,1775356241666,-500.0,0.00010721,2]
[419755150,1775356241676,-500.0,0.00010721,2]
[419755152,1775356241686,-500.0,0.00010721,2]
[419755154,1775356241696,-500.0,0.00010721,2]
[419755156,1775356241705,-500.0,0.00010721,2]
[419755158,1775356241715,-500.0,0.00010721,2]
[419755160,1775356241724,-500.0,0.00010721,2]
[419755162,1775356241734,-500.0,0.00010721,2]
[419755164,1775356241744,-500.0,0.00010721,2]
[419755166,1775356241754,-500.0,0.00010721,2]
[419755168,1775356241764,-500.0,0.00010721,2]
[419755170,1775356241774,-500.0,0.00010721,2]
[419755172,1775356241784,-500.0,0.00010721,2]
[419755174,1775356241794,-500.0,0.00010721,2]
[419755176,1775356241803,-500.0,0.00010721,2]
[419755178,1775356241813,-500.0,0.00010721,2]
[419755180,1775356241822,-500.0,0.00010721,2]
[419755182,1775356241832,-500.0,0.00010721,2]
[419755184,1775356241842,-500.0,0.00010721,2]
[419755186,1775356241851,-500.0,0.00010721,2]
[419755188,1775356241861,-500.0,0.00010721,2]
[419755190,1775356241871,-500.0,0.00010721,2]
[419755193,1775356241881,-500.0,0.00010721,2]
[419755195,1775356241890,-500.0,0.00010721,2]
[419755196,1775356241900,-500.0,0.00010721,2]
[419755198,1775356241909,-500.0,0.00010721,2]
[419755200,1775356241919,-500.0,0.00010721,2]
[419755202,1775356241928,-500.0,0.00010721,2]
[419755204,1775356241938,-500.0,0.00010721,2]
[419755206,1775356241947,-500.0,0.00010721,2]
[419755208,1775356241957,-500.0,0.00010721,2]
[419755209,1775356241967,-500.0,0.00010721,2]
[419755210,1775356241977,-500.0,0.00010721,2]
[419755211,1775356241986,-500.0,0.00010721,2]
[419755212,1775356241997,-500.0,0.00010721,2]
[419755213,1775356242006,-500.0,0.00010721,2]
[419755214,1775356242016,-500.0,0.00010721,2]
[419755215,1775356242028,-500.0,0.00010721,2]
[419755216,1775356242037,-500.0,0.00010721,2]
[419755217,1775356242047,-500.0,0.00010721,2]
[419755218,1775356242060,-500.0,0.00010721,2]
[419755219,1775356242071,-500.0,0.00010721,2]
[419755220,1775356242082,-500.0,0.00010721,2]
[419755221,1775356242091,-500.0,0.00010721,2]
[419755222,1775356242101,-500.0,0.00010721,2]
[419755223,1775356242110,-500.0,0.00010721,2]
[419755224,1775356242120,-500.0,0.00010721,2]
[419755225,1775356242130,-500.0,0.00010721,2]
[419755226,1775356242140,-500.0,0.00010721,2]
[419755227,1775356242149,-500.0,0.00010721,2]
[419755228,1775356242158,-500.0,0.00010721,2]
[419755229,1775356242168,-500.0,0.00010721,2]
[419755230,1775356242178,-500.0,0.00010721,2]
[419755231,1775356242187,-500.0,0.00010721,2]
[419755232,1775356242196,-500.0,0.00010721,2]
[419755233,1775356242206,-500.0,0.00010721,2]
[419755234,1775356242215,-500.0,0.00010721,2]
[419755235,1775356242224,-500.0,0.00010721,2]
[419755236,1775356242234,-500.0,0.00010721,2]
[419755237,1775356242244,-500.0,0.00010721,2]
[419755238,1775356242254,-500.0,0.00010721,2]
[419755239,1775356242264,-240.20587252,0.00010721,2]
[419755240,1775356242274,-500.0,0.00010721,2]
[419755241,1775356242283,-500.0,0.00010721,2]
[419755242,1775356242293,-500.0,0.00010721,2]
[419755243,1775356242302,-500.0,0.00010721,2]
[419755244,1775356242312,-500.0,0.00010721,2]
[419755245,1775356242323,-500.0,0.00010721,2]
[419755246,1775356242332,-500.0,0.00010721,2]
[419755247,1775356242343,-500.0,0.00010721,2]
[419755248,1775356242354,-500.0,0.00010721,2]
[419755249,1775356242363,-500.0,0.00010721,2]
[419755250,1775356242373,-500.0,0.00010721,2]
[419755251,1775356242383,-500.0,0.00010721,2]
[419755252,1775356242391,-500.0,0.00010721,2]
[419755253,1775356242401,-500.0,0.00010721,2]
[419755254,1775356242411,-500.0,0.00010721,2]
[419755255,1775356242421,-500.0,0.00010721,2]
[419755256,1775356242431,-500.0,0.00010721,2]